[Event "*** SCC Grand Prix: Titled Tuesday Blitz"]
[Site "Chess.com"]
[Date "2020.06.09"]
[Round "3"]
[White "KaterinaMiroshnik"]
[Black "Mazetovic"]
[Result "0-1"]
[WhiteElo "2412"]
[BlackElo "2626"]
[TimeControl "180+1"]
[EndTime "9:28:20 PDT"]
[Termination "Mazetovic won by resignation"]

1. d3 {[%clk 0:03:00.6]} 1... c5 {[%clk 0:02:57.2]} 2. Nd2 {[%clk 0:03:01.5]}
2... Nc6 {[%clk 0:02:56.9]} 3. Ngf3 {[%clk 0:03:02.4]} 3... g6 {[%clk
0:02:56.1]} 4. e4 {[%clk 0:03:03.3]} 4... Bg7 {[%clk 0:02:56.4]} 5. c3 {[%clk
0:03:04.2]} 5... d5 {[%clk 0:02:54]} 6. Be2 {[%clk 0:03:05.1]} 6... Nf6 {[%clk
0:02:53.6]} 7. O-O {[%clk 0:03:05.4]} 7... O-O {[%clk 0:02:53.6]} 8. Qc2 {[%clk
0:03:03.8]} 8... e6 {[%clk 0:02:52.3]} 9. Re1 {[%clk 0:03:02.6]} 9... b5 {[%clk
0:02:36.5]} 10. a3 {[%clk 0:03:01.8]} 10... Rb8 {[%clk 0:02:33.2]} 11. b3 {[%clk
0:03:01.7]} 11... a5 {[%clk 0:02:29.7]} 12. Bb2 {[%clk 0:03:01.4]} 12... Ba6
{[%clk 0:02:28.8]} 13. Bf1 {[%clk 0:03:01.3]} 13... Rc8 {[%clk 0:02:28.2]} 14.
Rad1 {[%clk 0:02:56.7]} 14... Qb6 {[%clk 0:02:27.8]} 15. g3 {[%clk 0:02:50.5]}
15... Rfd8 {[%clk 0:02:27.4]} 16. Bg2 {[%clk 0:02:49.1]} 16... a4 {[%clk
0:02:22.8]} 17. bxa4 {[%clk 0:02:42.7]} 17... bxa4 {[%clk 0:02:22.7]} 18. c4
{[%clk 0:02:37.9]} 18... dxc4 {[%clk 0:02:10.6]} 19. dxc4 {[%clk 0:02:36.6]}
19... Nd4 {[%clk 0:02:09.5]} 20. Nxd4 {[%clk 0:02:29.3]} 20... cxd4 {[%clk
0:02:09.3]} 21. Bf1 {[%clk 0:02:30.2]} 21... Nd7 {[%clk 0:02:08.5]} 22. Rb1
{[%clk 0:02:20.2]} 22... Qa5 {[%clk 0:02:00]} 23. Bd3 {[%clk 0:02:08.8]} 23...
Nc5 {[%clk 0:01:59.7]} 24. Rec1 {[%clk 0:02:09.2]} 24... e5 {[%clk 0:01:51.7]}
25. Ba1 {[%clk 0:02:05.6]} 25... Bh6 {[%clk 0:01:51.1]} 26. Rd1 {[%clk
0:02:03.3]} 26... Rb8 {[%clk 0:01:50.7]} 27. Nf3 {[%clk 0:01:56.5]} 27... f6
{[%clk 0:01:40.9]} 28. h4 {[%clk 0:01:55.4]} 28... Rb3 {[%clk 0:01:39.3]} 29.
Bb2 {[%clk 0:01:37.1]} 29... Rdb8 {[%clk 0:01:38.1]} 30. Ba1 {[%clk 0:01:35.5]}
30... Qb6 {[%clk 0:01:32.9]} 31. Rxb3 {[%clk 0:01:26.5]} 31... Qxb3 {[%clk
0:01:29]} 32. Rb1 {[%clk 0:01:13.6]} 32... Qxb1+ {[%clk 0:01:27.6]} 33. Qxb1
{[%clk 0:01:14.2]} 33... Rxb1+ {[%clk 0:01:28.1]} 34. Bxb1 {[%clk 0:01:15.1]}
34... Bxc4 {[%clk 0:01:28.4]} 35. Ne1 {[%clk 0:01:03.5]} 35... Bc1 {[%clk
0:01:24]} 36. Nc2 {[%clk 0:01:02.9]} 36... Nb3 {[%clk 0:01:22.2]} 37. Ba2 {[%clk
0:00:57.3]} 37... Kf7 {[%clk 0:01:12.2]} 38. f4 {[%clk 0:00:46.5]} 38... Ke6
{[%clk 0:01:11.6]} 39. Kf2 {[%clk 0:00:45.6]} 39... Kd6 {[%clk 0:01:11.6]} 40.
fxe5+ {[%clk 0:00:45.2]} 40... fxe5 {[%clk 0:01:11.4]} 41. Ke1 {[%clk
0:00:44.6]} 41... Kc5 {[%clk 0:01:10.7]} 42. Bb1 {[%clk 0:00:39.3]} 42... Nxa1
{[%clk 0:00:54.6]} 43. Nxa1 {[%clk 0:00:40.2]} 43... Bxa3 {[%clk 0:00:54.6]} 44.
Bc2 {[%clk 0:00:39.4]} 44... Bb2 {[%clk 0:00:53.7]} 0-1

[Event "*** SCC Grand Prix: Titled Tuesday Blitz"]
[Site "Chess.com"]
[Date "2020.06.09"]
[Round "3"]
[White "Unknown_IM"]
[Black "vugarrasulov"]
[Result "0-1"]
[WhiteElo "2463"]
[BlackElo "2795"]
[TimeControl "180+1"]
[EndTime "9:28:22 PDT"]
[Termination "vugarrasulov won on time"]

1. e4 {[%clk 0:03:00.9]} 1... e6 {[%clk 0:02:58.5]} 2. d4 {[%clk 0:03:00.4]}
2... d5 {[%clk 0:02:58.8]} 3. e5 {[%clk 0:03:00.7]} 3... c5 {[%clk 0:02:58.6]}
4. c3 {[%clk 0:03:01.1]} 4... Qb6 {[%clk 0:02:59.1]} 5. Nf3 {[%clk 0:03:01]}
5... Bd7 {[%clk 0:02:59.4]} 6. a3 {[%clk 0:03:00.1]} 6... Bb5 {[%clk 0:02:55.6]}
7. Bxb5+ {[%clk 0:02:59.7]} 7... Qxb5 {[%clk 0:02:52.4]} 8. b4 {[%clk
0:03:00.1]} 8... cxd4 {[%clk 0:02:48.8]} 9. cxd4 {[%clk 0:02:59.8]} 9... Nd7
{[%clk 0:02:45.3]} 10. Nc3 {[%clk 0:02:59.2]} 10... Qa6 {[%clk 0:02:45.4]} 11.
Ne2 {[%clk 0:02:58.3]} 11... Ne7 {[%clk 0:02:38.8]} 12. O-O {[%clk 0:02:57]}
12... Ng6 {[%clk 0:02:35]} 13. h4 {[%clk 0:02:50.4]} 13... Be7 {[%clk
0:02:34.3]} 14. h5 {[%clk 0:02:49.9]} 14... Nh4 {[%clk 0:02:34.2]} 15. Nxh4
{[%clk 0:02:48]} 15... Bxh4 {[%clk 0:02:35.1]} 16. Be3 {[%clk 0:02:40]} 16... h6
{[%clk 0:02:33.1]} 17. Nf4 {[%clk 0:02:25.5]} 17... O-O-O {[%clk 0:02:28.8]} 18.
a4 {[%clk 0:02:17.2]} 18... Kb8 {[%clk 0:02:11.5]} 19. b5 {[%clk 0:02:05.3]}
19... Qa5 {[%clk 0:02:07.8]} 20. Qd3 {[%clk 0:02:01.4]} 20... Rc8 {[%clk
0:02:02.2]} 21. Bd2 {[%clk 0:01:46.2]} 21... Qd8 {[%clk 0:02:01.8]} 22. a5
{[%clk 0:01:40.4]} 22... Bg5 {[%clk 0:02:01.8]} 23. g3 {[%clk 0:01:29.1]} 23...
Rc4 {[%clk 0:01:57.7]} 24. Rfb1 {[%clk 0:01:10.9]} 24... Re8 {[%clk 0:01:46.2]}
25. Kg2 {[%clk 0:00:26.6]} 25... f6 {[%clk 0:01:43.1]} 26. exf6 {[%clk
0:00:22.3]} 26... Nxf6 {[%clk 0:01:43.2]} 27. Ng6 {[%clk 0:00:18.1]} 27... Bxd2
{[%clk 0:01:38.4]} 28. Qxd2 {[%clk 0:00:17.7]} 28... Ne4 {[%clk 0:01:38.9]} 29.
Qe3 {[%clk 0:00:14.1]} 29... Rc2 {[%clk 0:01:37]} 30. Rf1 {[%clk 0:00:11.4]}
30... Qg5 {[%clk 0:01:32]} 31. Qxg5 {[%clk 0:00:10.1]} 31... hxg5 {[%clk
0:01:32.9]} 32. Ne5 {[%clk 0:00:10.2]} 32... Rec8 {[%clk 0:01:21]} 33. a6 {[%clk
0:00:06.8]} 33... Rb2 {[%clk 0:01:15]} 34. axb7 {[%clk 0:00:06.3]} 34... Kxb7
{[%clk 0:01:08.9]} 35. Rab1 {[%clk 0:00:06.8]} 35... Rcc2 {[%clk 0:01:07.4]} 36.
Rxb2 {[%clk 0:00:06.7]} 36... Rxb2 {[%clk 0:01:08.3]} 37. Nf7 {[%clk 0:00:02.3]}
37... Kc7 {[%clk 0:01:04.5]} 38. Rc1+ {[%clk 0:00:01.3]} 38... Kb6 {[%clk
0:01:01.8]} 0-1

[Event "*** SCC Grand Prix: Titled Tuesday Blitz"]
[Site "Chess.com"]
[Date "2020.06.09"]
[Round "3"]
[White "Semen_Khanin"]
[Black "Firouzja2003"]
[Result "0-1"]
[WhiteElo "2733"]
[BlackElo "3132"]
[TimeControl "180+1"]
[EndTime "9:28:24 PDT"]
[Termination "Firouzja2003 won by resignation"]

1. e4 {[%clk 0:03:00.9]} 1... e6 {[%clk 0:02:57.1]} 2. d4 {[%clk 0:03:00.6]}
2... d5 {[%clk 0:02:57.8]} 3. e5 {[%clk 0:03:01.5]} 3... c5 {[%clk 0:02:57.9]}
4. c3 {[%clk 0:03:02.1]} 4... Nc6 {[%clk 0:02:58.5]} 5. Nf3 {[%clk 0:03:02.6]}
5... Qb6 {[%clk 0:02:59]} 6. Na3 {[%clk 0:03:02.7]} 6... cxd4 {[%clk 0:02:53.9]}
7. cxd4 {[%clk 0:03:02.8]} 7... Bd7 {[%clk 0:02:54]} 8. Nc2 {[%clk 0:03:01]}
8... Nh6 {[%clk 0:02:53]} 9. Bd3 {[%clk 0:03:00.8]} 9... Nb4 {[%clk 0:02:50.5]}
10. Nxb4 {[%clk 0:02:59.4]} 10... Bxb4+ {[%clk 0:02:51.4]} 11. Bd2 {[%clk
0:02:56.4]} 11... Bxd2+ {[%clk 0:02:49.3]} 12. Qxd2 {[%clk 0:02:56.2]} 12... Bb5
{[%clk 0:02:49.9]} 13. O-O {[%clk 0:02:49]} 13... O-O {[%clk 0:02:48.6]} 14.
Rfc1 {[%clk 0:02:42.8]} 14... Bxd3 {[%clk 0:02:34.7]} 15. Qxd3 {[%clk 0:02:43]}
15... Rfc8 {[%clk 0:02:35]} 16. Ng5 {[%clk 0:02:09.1]} 16... Nf5 {[%clk
0:02:33]} 17. Rd1 {[%clk 0:01:41.4]} 17... Rc4 {[%clk 0:01:43.1]} 18. Nf3 {[%clk
0:00:53.5]} 18... Rac8 {[%clk 0:01:42.9]} 19. Rab1 {[%clk 0:00:43.4]} 19... h6
{[%clk 0:01:39.4]} 20. h4 {[%clk 0:00:40]} 20... Rc2 {[%clk 0:01:37]} 21. h5
{[%clk 0:00:38.5]} 21... Rxb2 {[%clk 0:01:24]} 22. Rxb2 {[%clk 0:00:38.5]} 22...
Qxb2 {[%clk 0:01:24.9]} 23. Rb1 {[%clk 0:00:37.3]} 23... Rc1+ {[%clk 0:01:19.7]}
24. Rxc1 {[%clk 0:00:35.6]} 24... Qxc1+ {[%clk 0:01:20.6]} 25. Kh2 {[%clk
0:00:35.8]} 25... Qf4+ {[%clk 0:01:18.5]} 26. Kg1 {[%clk 0:00:28.1]} 26... Qc1+
{[%clk 0:01:18.5]} 27. Kh2 {[%clk 0:00:27.7]} 27... Qc4 {[%clk 0:01:19.1]} 28.
Qd2 {[%clk 0:00:26.4]} 28... b5 {[%clk 0:01:08.3]} 29. g4 {[%clk 0:00:26.5]}
29... Ne7 {[%clk 0:01:09]} 30. g5 {[%clk 0:00:26.9]} 30... Nf5 {[%clk
0:01:01.6]} 31. g6 {[%clk 0:00:24.2]} 31... fxg6 {[%clk 0:00:55.6]} 32. hxg6
{[%clk 0:00:24]} 32... b4 {[%clk 0:00:55.8]} 33. Qf4 {[%clk 0:00:18.2]} 33... a5
{[%clk 0:00:48]} 34. Qg4 {[%clk 0:00:08]} 34... Qxa2 {[%clk 0:00:41.7]} 35. Kg2
{[%clk 0:00:06.4]} 35... Ne3+ {[%clk 0:00:41.5]} 0-1

[Event "*** SCC Grand Prix: Titled Tuesday Blitz"]
[Site "Chess.com"]
[Date "2020.06.09"]
[Round "3"]
[White "joksijoksi"]
[Black "vinniethepooh"]
[Result "1-0"]
[WhiteElo "2362"]
[BlackElo "2545"]
[TimeControl "180+1"]
[EndTime "9:28:25 PDT"]
[Termination "joksijoksi won by resignation"]

1. d4 {[%clk 0:02:49.8]} 1... Nf6 {[%clk 0:02:59.3]} 2. c4 {[%clk 0:02:50.1]}
2... e6 {[%clk 0:02:59.6]} 3. Nc3 {[%clk 0:02:50.7]} 3... Bb4 {[%clk 0:02:59.5]}
4. f3 {[%clk 0:02:50.6]} 4... O-O {[%clk 0:02:56.8]} 5. a3 {[%clk 0:02:50.1]}
5... Bxc3+ {[%clk 0:02:56.1]} 6. bxc3 {[%clk 0:02:51]} 6... d5 {[%clk
0:02:56.8]} 7. cxd5 {[%clk 0:02:48.6]} 7... exd5 {[%clk 0:02:57.7]} 8. e3 {[%clk
0:02:48.3]} 8... Re8 {[%clk 0:02:45.2]} 9. Bd3 {[%clk 0:02:46.6]} 9... Nh5
{[%clk 0:02:44.6]} 10. Ne2 {[%clk 0:02:23.9]} 10... Qh4+ {[%clk 0:02:33.1]} 11.
g3 {[%clk 0:02:23.6]} 11... Qe7 {[%clk 0:02:24.1]} 12. Kf2 {[%clk 0:02:08.7]}
12... Nd7 {[%clk 0:02:13.9]} 13. h4 {[%clk 0:02:05.7]} 13... Nb6 {[%clk
0:01:59.8]} 14. g4 {[%clk 0:02:04.4]} 14... Nf6 {[%clk 0:01:58.3]} 15. h5 {[%clk
0:02:02]} 15... h6 {[%clk 0:01:53.1]} 16. Ng3 {[%clk 0:02:01.7]} 16... c5 {[%clk
0:01:49.5]} 17. Bd2 {[%clk 0:01:54.8]} 17... Bd7 {[%clk 0:01:40.2]} 18. Re1
{[%clk 0:01:52.3]} 18... Qd6 {[%clk 0:01:34.8]} 19. Kg2 {[%clk 0:01:50.9]} 19...
Rac8 {[%clk 0:01:25.2]} 20. e4 {[%clk 0:01:36.8]} 20... dxe4 {[%clk 0:01:23.8]}
21. Nxe4 {[%clk 0:01:35.9]} 21... Nxe4 {[%clk 0:01:18.8]} 22. Rxe4 {[%clk
0:01:35]} 22... Rxe4 {[%clk 0:01:17.4]} 23. Bxe4 {[%clk 0:01:35.2]} 23... cxd4
{[%clk 0:01:17.8]} 24. Be3 {[%clk 0:01:32.3]} 24... Nd5 {[%clk 0:01:05.2]} 25.
Qxd4 {[%clk 0:01:27.5]} 25... Nxe3+ {[%clk 0:01:03.8]} 26. Qxe3 {[%clk
0:01:27.8]} 26... b6 {[%clk 0:00:56.7]} 27. a4 {[%clk 0:01:26.4]} 27... Bc6
{[%clk 0:00:47.1]} 28. Bxc6 {[%clk 0:01:17.6]} 28... Qxc6 {[%clk 0:00:48]} 29.
a5 {[%clk 0:01:18.2]} 29... Re8 {[%clk 0:00:36.6]} 30. Qd3 {[%clk 0:01:15.6]}
30... b5 {[%clk 0:00:33.3]} 31. Ra2 {[%clk 0:01:07.8]} 31... a6 {[%clk
0:00:31.6]} 32. Re2 {[%clk 0:01:06.5]} 32... Rc8 {[%clk 0:00:25.9]} 33. Re7
{[%clk 0:00:57.6]} 33... Qxc3 {[%clk 0:00:20.5]} 34. Re8+ {[%clk 0:00:57.8]}
34... Rxe8 {[%clk 0:00:19.4]} 35. Qxc3 {[%clk 0:00:58.4]} 35... Re6 {[%clk
0:00:15.7]} 36. f4 {[%clk 0:00:53.1]} 36... f5 {[%clk 0:00:13.5]} 37. g5 {[%clk
0:00:52.5]} 37... hxg5 {[%clk 0:00:11.1]} 38. fxg5 {[%clk 0:00:53.4]} 38... Re4
{[%clk 0:00:09.7]} 39. Qc8+ {[%clk 0:00:50.9]} 1-0

[Event "*** SCC Grand Prix: Titled Tuesday Blitz"]
[Site "Chess.com"]
[Date "2020.06.09"]
[Round "3"]
[White "yobdc"]
[Black "Sanyura"]
[Result "1-0"]
[WhiteElo "2237"]
[BlackElo "2502"]
[TimeControl "180+1"]
[EndTime "9:28:25 PDT"]
[Termination "yobdc won on time"]

1. e4 {[%clk 0:03:00.9]} 1... c5 {[%clk 0:02:57.3]} 2. Nf3 {[%clk 0:02:59.6]}
2... e6 {[%clk 0:02:57.4]} 3. g3 {[%clk 0:02:57.1]} 3... Nc6 {[%clk 0:02:57.3]}
4. Bg2 {[%clk 0:02:57]} 4... d5 {[%clk 0:02:58.2]} 5. exd5 {[%clk 0:02:56.6]}
5... exd5 {[%clk 0:02:59.1]} 6. d4 {[%clk 0:02:55.5]} 6... Bd6 {[%clk
0:02:54.9]} 7. O-O {[%clk 0:02:54.8]} 7... Nge7 {[%clk 0:02:54.5]} 8. dxc5
{[%clk 0:02:52.6]} 8... Bxc5 {[%clk 0:02:52.3]} 9. Nbd2 {[%clk 0:02:52.6]} 9...
O-O {[%clk 0:02:44.8]} 10. Nb3 {[%clk 0:02:52.5]} 10... Bb6 {[%clk 0:02:43.3]}
11. Re1 {[%clk 0:02:52.4]} 11... h6 {[%clk 0:02:35.3]} 12. Be3 {[%clk
0:02:52.4]} 12... Bg4 {[%clk 0:02:32.5]} 13. Bxb6 {[%clk 0:02:48.6]} 13... Qxb6
{[%clk 0:02:33.4]} 14. h3 {[%clk 0:02:49]} 14... Bh5 {[%clk 0:02:30.8]} 15. Qd2
{[%clk 0:02:46.7]} 15... Rfe8 {[%clk 0:02:25.1]} 16. c3 {[%clk 0:02:45]} 16...
Rad8 {[%clk 0:02:21.3]} 17. Re3 {[%clk 0:02:33.4]} 17... Bxf3 {[%clk 0:02:12.2]}
18. Bxf3 {[%clk 0:02:31.7]} 18... d4 {[%clk 0:02:10.6]} 19. cxd4 {[%clk
0:02:27.5]} 19... Nf5 {[%clk 0:01:43.2]} 20. Rxe8+ {[%clk 0:02:25.6]} 20... Rxe8
{[%clk 0:01:44.1]} 21. Rd1 {[%clk 0:02:06.8]} 21... Rd8 {[%clk 0:01:40.6]} 22.
Bxc6 {[%clk 0:02:03.9]} 22... Qxc6 {[%clk 0:01:37.2]} 23. Qf4 {[%clk 0:01:59.3]}
23... Nd6 {[%clk 0:01:30.7]} 24. d5 {[%clk 0:01:55.7]} 24... Qc2 {[%clk
0:01:27.7]} 25. Qd2 {[%clk 0:01:45.8]} 25... Qc8 {[%clk 0:01:21.8]} 26. Kg2
{[%clk 0:01:40.2]} 26... Ne4 {[%clk 0:01:15.5]} 27. Qf4 {[%clk 0:01:37.7]} 27...
Nf6 {[%clk 0:00:50.4]} 28. Qf3 {[%clk 0:01:24.7]} 28... Qc2 {[%clk 0:00:43.1]}
29. Rd2 {[%clk 0:01:24.4]} 29... Qb1 {[%clk 0:00:35.1]} 30. a3 {[%clk
0:01:19.7]} 30... Qg6 {[%clk 0:00:04.1]} 31. Rd4 {[%clk 0:01:04.7]} 31... Nd7
{[%clk 0:00:02.9]} 32. d6 {[%clk 0:00:58.1]} 32... Ne5 {[%clk 0:00:02.5]} 33.
Qxb7 {[%clk 0:00:56.7]} 33... Rxd6 {[%clk 0:00:01.7]} 34. Qb8+ {[%clk 0:00:56]}
34... Kh7 {[%clk 0:00:01.7]} 35. Qxd6 {[%clk 0:00:56]} 35... Qf5 {[%clk
0:00:01.3]} 36. Qd5 {[%clk 0:00:52.7]} 1-0

[Event "*** SCC Grand Prix: Titled Tuesday Blitz"]
[Site "Chess.com"]
[Date "2020.06.09"]
[Round "3"]
[White "rynos0411"]
[Black "MiroVlasenko"]
[Result "0-1"]
[WhiteElo "2410"]
[BlackElo "2614"]
[TimeControl "180+1"]
[EndTime "9:28:26 PDT"]
[Termination "MiroVlasenko won by resignation"]

1. d4 {[%clk 0:02:59.5]} 1... Nf6 {[%clk 0:02:58.7]} 2. c4 {[%clk 0:02:59]} 2...
e6 {[%clk 0:02:58.9]} 3. Nf3 {[%clk 0:02:58.4]} 3... Bb4+ {[%clk 0:02:57.5]} 4.
Nbd2 {[%clk 0:02:58.1]} 4... b6 {[%clk 0:02:57.3]} 5. a3 {[%clk 0:02:56.1]} 5...
Bxd2+ {[%clk 0:02:57.1]} 6. Bxd2 {[%clk 0:02:57]} 6... Bb7 {[%clk 0:02:57]} 7.
Bf4 {[%clk 0:02:57.4]} 7... d6 {[%clk 0:02:54.7]} 8. e3 {[%clk 0:02:57]} 8...
Nbd7 {[%clk 0:02:54.3]} 9. Be2 {[%clk 0:02:53.1]} 9... Qe7 {[%clk 0:02:53.8]}
10. Bg3 {[%clk 0:02:51.7]} 10... O-O {[%clk 0:02:50.2]} 11. O-O {[%clk
0:02:51.3]} 11... e5 {[%clk 0:02:45.1]} 12. b4 {[%clk 0:02:49.6]} 12... a5
{[%clk 0:02:41]} 13. Qc2 {[%clk 0:02:40.2]} 13... Rfe8 {[%clk 0:02:27.2]} 14.
Rfc1 {[%clk 0:02:32.2]} 14... Ne4 {[%clk 0:02:16.8]} 15. Bf1 {[%clk 0:02:23]}
15... f5 {[%clk 0:02:08.9]} 16. c5 {[%clk 0:02:12.4]} 16... Nxg3 {[%clk
0:01:52.1]} 17. hxg3 {[%clk 0:01:44.9]} 17... Be4 {[%clk 0:01:47.7]} 18. Qb3+
{[%clk 0:01:41.2]} 18... Kh8 {[%clk 0:01:35.6]} 19. cxd6 {[%clk 0:01:14.4]}
19... cxd6 {[%clk 0:01:34.5]} 20. Nd2 {[%clk 0:01:13.5]} 20... exd4 {[%clk
0:01:25.3]} 21. exd4 {[%clk 0:01:09.6]} 21... Nf6 {[%clk 0:01:23.9]} 22. Nxe4
{[%clk 0:00:55.1]} 22... fxe4 {[%clk 0:01:22.8]} 23. Rc6 {[%clk 0:00:51.4]}
23... axb4 {[%clk 0:01:08.2]} 24. Qxb4 {[%clk 0:00:51]} 24... e3 {[%clk
0:01:08.6]} 25. Rc2 {[%clk 0:00:16.7]} 25... exf2+ {[%clk 0:01:02.4]} 26. Rxf2
{[%clk 0:00:16.6]} 26... Ne4 {[%clk 0:00:48.4]} 27. Rf3 {[%clk 0:00:14.3]} 27...
Ng5 {[%clk 0:00:41.5]} 28. Rf2 {[%clk 0:00:12.6]} 28... Qe3 {[%clk 0:00:33.1]}
29. Qd2 {[%clk 0:00:09.7]} 29... Qxg3 {[%clk 0:00:29.5]} 30. Kh1 {[%clk
0:00:03.2]} 30... Ne4 {[%clk 0:00:27.9]} 0-1

[Event "*** SCC Grand Prix: Titled Tuesday Blitz"]
[Site "Chess.com"]
[Date "2020.06.09"]
[Round "3"]
[White "Jadeit90"]
[Black "Caracternin123"]
[Result "0-1"]
[WhiteElo "2301"]
[BlackElo "2550"]
[TimeControl "180+1"]
[EndTime "9:28:28 PDT"]
[Termination "Caracternin123 won by resignation"]

1. g3 {[%clk 0:03:00.9]} 1... Nf6 {[%clk 0:03:00.1]} 2. Bg2 {[%clk 0:03:01]}
2... g6 {[%clk 0:03:00.6]} 3. e4 {[%clk 0:03:01.2]} 3... d6 {[%clk 0:03:00.3]}
4. Nc3 {[%clk 0:03:01.3]} 4... Bg7 {[%clk 0:03:00.7]} 5. d4 {[%clk 0:03:01.6]}
5... O-O {[%clk 0:03:01]} 6. Nge2 {[%clk 0:03:02.5]} 6... Nc6 {[%clk 0:03:01]}
7. O-O {[%clk 0:03:03.4]} 7... e5 {[%clk 0:03:01.1]} 8. d5 {[%clk 0:03:03.8]}
8... Ne7 {[%clk 0:03:01.3]} 9. a4 {[%clk 0:03:04.1]} 9... Ne8 {[%clk 0:03:01.5]}
10. a5 {[%clk 0:03:04.6]} 10... a6 {[%clk 0:03:01.4]} 11. b4 {[%clk 0:02:36.3]}
11... f5 {[%clk 0:02:53.1]} 12. b5 {[%clk 0:02:34.7]} 12... Nf6 {[%clk
0:02:51.5]} 13. bxa6 {[%clk 0:02:34.7]} 13... Rxa6 {[%clk 0:02:51.7]} 14. Qd3
{[%clk 0:02:19.7]} 14... c6 {[%clk 0:02:43.1]} 15. dxc6 {[%clk 0:02:18.8]} 15...
bxc6 {[%clk 0:02:44]} 16. Ba3 {[%clk 0:02:10.2]} 16... fxe4 {[%clk 0:02:13.7]}
17. Nxe4 {[%clk 0:02:09.8]} 17... d5 {[%clk 0:02:14.2]} 18. Nxf6+ {[%clk
0:02:07.9]} 18... Bxf6 {[%clk 0:02:14.1]} 19. c4 {[%clk 0:01:55]} 19... Rxa5
{[%clk 0:02:10.4]} 20. cxd5 {[%clk 0:01:54.7]} 20... cxd5 {[%clk 0:02:05.8]} 21.
Bxe7 {[%clk 0:01:54.3]} 21... Bxe7 {[%clk 0:02:05]} 22. Rxa5 {[%clk 0:01:52.1]}
22... Qxa5 {[%clk 0:02:05.9]} 23. Qxd5+ {[%clk 0:01:50.9]} 23... Qxd5 {[%clk
0:02:05.9]} 24. Bxd5+ {[%clk 0:01:51.8]} 24... Kg7 {[%clk 0:02:06.5]} 25. Rc1
{[%clk 0:01:47.1]} 25... Ba6 {[%clk 0:02:04.3]} 26. Nc3 {[%clk 0:01:45.6]} 26...
Rc8 {[%clk 0:02:03.4]} 27. Na2 {[%clk 0:01:41.4]} 27... Rd8 {[%clk 0:02:03.6]}
28. Nc3 {[%clk 0:01:41.2]} 28... Rc8 {[%clk 0:01:37.1]} 29. Na2 {[%clk
0:01:40.5]} 29... Rb8 {[%clk 0:01:37.6]} 30. Nc3 {[%clk 0:01:39.1]} 30... Rb2
{[%clk 0:01:37]} 31. Ne4 {[%clk 0:01:36.4]} 31... Bd8 {[%clk 0:01:32.3]} 32. Ra1
{[%clk 0:01:30.6]} 32... Bd3 {[%clk 0:01:06.3]} 33. Nc5 {[%clk 0:01:23]} 33...
Bf5 {[%clk 0:01:06.6]} 34. Ne6+ {[%clk 0:01:23.1]} 34... Bxe6 {[%clk 0:01:07]}
35. Bxe6 {[%clk 0:01:24]} 35... Bb6 {[%clk 0:01:07.4]} 36. Rf1 {[%clk
0:01:23.5]} 36... e4 {[%clk 0:01:07.9]} 37. Bd5 {[%clk 0:01:21.4]} 37... Re2
{[%clk 0:01:06.9]} 38. Bc4 {[%clk 0:01:19.9]} 38... Rd2 {[%clk 0:01:07.3]} 39.
h4 {[%clk 0:01:13.3]} 39... Kf6 {[%clk 0:01:07.2]} 40. Ba6 {[%clk 0:01:12.5]}
40... Ke5 {[%clk 0:01:06.4]} 41. Bb7 {[%clk 0:01:12.4]} 41... Kf5 {[%clk
0:01:03.9]} 42. Bc8+ {[%clk 0:01:12.1]} 42... Kf6 {[%clk 0:01:04]} 43. Bb7
{[%clk 0:01:11.2]} 43... Ke5 {[%clk 0:01:04.1]} 44. Ba6 {[%clk 0:01:07.1]} 44...
Rc2 {[%clk 0:01:03.7]} 45. Bb5 {[%clk 0:01:06.1]} 45... Bd4 {[%clk 0:01:00.7]}
46. Be8 {[%clk 0:01:01.8]} 46... Ba7 {[%clk 0:00:58.1]} 47. Bf7 {[%clk
0:01:01.7]} 47... Kf5 {[%clk 0:00:57]} 48. Bg8 {[%clk 0:01:01.8]} 48... Kg4
{[%clk 0:00:46]} 49. Bxh7 {[%clk 0:00:45.7]} 49... Kf3 {[%clk 0:00:45.1]} 50.
Bxg6 {[%clk 0:00:46]} 50... Bxf2+ {[%clk 0:00:45.4]} 51. Kh1 {[%clk 0:00:46]}
51... Kxg3 {[%clk 0:00:45.8]} 52. Bxe4 {[%clk 0:00:44.8]} 52... Rc4 {[%clk
0:00:46.1]} 53. Rxf2 {[%clk 0:00:39.4]} 53... Rc1+ {[%clk 0:00:46.3]} 0-1

[Event "*** SCC Grand Prix: Titled Tuesday Blitz"]
[Site "Chess.com"]
[Date "2020.06.09"]
[Round "3"]
[White "KobyKalavannan"]
[Black "harlem4brew"]
[Result "1-0"]
[WhiteElo "2511"]
[BlackElo "2200"]
[TimeControl "180+1"]
[EndTime "9:28:30 PDT"]
[Termination "KobyKalavannan won by checkmate"]

1. d4 {[%clk 0:03:00.9]} 1... Nf6 {[%clk 0:02:59.9]} 2. c4 {[%clk 0:03:01.2]}
2... e6 {[%clk 0:02:59.7]} 3. Nf3 {[%clk 0:03:01.3]} 3... d5 {[%clk 0:02:59.4]}
4. g3 {[%clk 0:03:01.6]} 4... Bb4+ {[%clk 0:02:57.4]} 5. Bd2 {[%clk 0:02:59.7]}
5... Bxd2+ {[%clk 0:02:56.8]} 6. Nbxd2 {[%clk 0:02:57.9]} 6... dxc4 {[%clk
0:02:53.8]} 7. Nxc4 {[%clk 0:02:58.8]} 7... b6 {[%clk 0:02:53.7]} 8. Bg2 {[%clk
0:02:57.4]} 8... Bb7 {[%clk 0:02:53.3]} 9. O-O {[%clk 0:02:56.6]} 9... O-O
{[%clk 0:02:52.6]} 10. Rc1 {[%clk 0:02:54.1]} 10... Nbd7 {[%clk 0:02:52.4]} 11.
Qc2 {[%clk 0:02:51.3]} 11... Rc8 {[%clk 0:02:51.5]} 12. Rfd1 {[%clk 0:02:42]}
12... Qe7 {[%clk 0:02:48.1]} 13. Qa4 {[%clk 0:02:26.6]} 13... a6 {[%clk
0:02:43.5]} 14. Nce5 {[%clk 0:02:10.3]} 14... b5 {[%clk 0:02:42.8]} 15. Qa5
{[%clk 0:02:04.9]} 15... Nb6 {[%clk 0:02:37.4]} 16. Nc6 {[%clk 0:02:00.3]} 16...
Bxc6 {[%clk 0:02:27.7]} 17. Rxc6 {[%clk 0:02:01.2]} 17... Nfd5 {[%clk
0:02:21.4]} 18. Ne5 {[%clk 0:01:53.1]} 18... f6 {[%clk 0:02:10.3]} 19. Nd3
{[%clk 0:01:52.3]} 19... Ra8 {[%clk 0:02:03.5]} 20. Nc5 {[%clk 0:01:45.8]} 20...
Nc4 {[%clk 0:01:53.7]} 21. Qe1 {[%clk 0:01:27.7]} 21... Rfd8 {[%clk 0:01:43.9]}
22. Nxe6 {[%clk 0:01:16.8]} 22... Rd6 {[%clk 0:01:34.3]} 23. Rxd6 {[%clk
0:01:10.2]} 23... Qxd6 {[%clk 0:01:27.3]} 24. Bxd5 {[%clk 0:01:10.4]} 24... Qxd5
{[%clk 0:01:23.3]} 25. Nxc7 {[%clk 0:01:10.5]} 25... Qe4 {[%clk 0:01:22.2]} 26.
Nxa8 {[%clk 0:01:10.1]} 26... Qxa8 {[%clk 0:01:23.1]} 27. d5 {[%clk 0:01:10.6]}
27... Nxb2 {[%clk 0:01:20.2]} 28. Rd4 {[%clk 0:01:10.4]} 28... Nc4 {[%clk
0:01:19.6]} 29. d6 {[%clk 0:01:09.9]} 29... Qa7 {[%clk 0:01:19]} 30. Qd1 {[%clk
0:01:04.7]} 30... Qd7 {[%clk 0:01:17.7]} 31. a4 {[%clk 0:01:02.1]} 31... Ne5
{[%clk 0:01:12.7]} 32. a5 {[%clk 0:01:00.9]} 32... h6 {[%clk 0:01:09]} 33. Qb3+
{[%clk 0:00:59.9]} 33... Kh7 {[%clk 0:01:06.5]} 34. Qc2+ {[%clk 0:00:53.5]}
34... Kg8 {[%clk 0:01:00.9]} 35. Qc7 {[%clk 0:00:53.3]} 35... Kf8 {[%clk
0:01:00.3]} 36. f4 {[%clk 0:00:48.5]} 36... Qg4 {[%clk 0:00:51.3]} 37. d7 {[%clk
0:00:31.7]} 37... Nxd7 {[%clk 0:00:41.4]} 38. Rxd7 {[%clk 0:00:31.8]} 38... Qxe2
{[%clk 0:00:38.2]} 39. Rf7+ {[%clk 0:00:25.9]} 39... Ke8 {[%clk 0:00:34.3]} 40.
Qd7# {[%clk 0:00:25.8]} 1-0